{"text_format":"3","workbook":"xlsx","n_sheets":3,"sheets":["Kundeemnedata","Salgsprognose ","Månedlig vektet prognose"],"not_rendered":{"charts":1,"defined_names":10},"read":"whole","date_system":"1900"}

{"sheet":"Kundeemnedata","index":0,"n_rows":9,"n_cols":10,"rows_kept":9}
[null,"Firmanavn"]
[null,"Detaljlogg for kundeemner"]
[null,{"$f":"TODAY()","v":"2022-04-05"}]
[{"$nulls":8},{"$f":"Firmanavn","v":"Firmanavn"},"KONFIDENSIELT"]
[null,"Kundeemnenavn","Kundeemnekontakt","Kundeemne \nkilde","Kundeemne \nområde","Kundeemne \nType","Potensielle muligheter","Mulighet \nfor salg","Lukking av \nprognose","Vektet \nLukking av"]
[null,"A. Datum Corporation",{"$nulls":3},"Strategisk",{"v":300000,"d":"kr 300,000.00"},{"v":0.9,"d":"90%"},"Januar",{"$f":"IFERROR(IF(KundeemneData[[#This Row],[Mulighet \nfor salg]]<>\"\",KundeemneData[[#This Row],[Mulighet \nfor salg]]*KundeemneData[[#This Row],[Potensielle muligheter]],\"\"),\"\")","v":{"v":270000,"d":"kr 270,000.00"}}]
[null,"Adventure Works",{"$nulls":3},"Strategisk",{"v":200000,"d":"kr 200,000.00"},{"v":0.1,"d":"10%"},"Februar",{"$f":"IFERROR(IF(KundeemneData[[#This Row],[Mulighet \nfor salg]]<>\"\",KundeemneData[[#This Row],[Mulighet \nfor salg]]*KundeemneData[[#This Row],[Potensielle muligheter]],\"\"),\"\")","v":{"v":20000,"d":"kr 20,000.00"}}]
[null,"Alpine Ski House",{"$nulls":3},"Taktisk",{"v":100000,"d":"kr 100,000.00"},{"v":0.2,"d":"20%"},"Mars",{"$f":"IFERROR(IF(KundeemneData[[#This Row],[Mulighet \nfor salg]]<>\"\",KundeemneData[[#This Row],[Mulighet \nfor salg]]*KundeemneData[[#This Row],[Potensielle muligheter]],\"\"),\"\")","v":{"v":20000,"d":"kr 20,000.00"}}]
[null,"Totalt",{"$nulls":4},{"$f":"SUBTOTAL(109,KundeemneData[Potensielle muligheter])","v":{"v":600000,"d":"kr 600,000.00"}},null,null,{"$f":"SUBTOTAL(109,KundeemneData[Vektet \nLukking av])","v":{"v":310000,"d":"kr 310,000.00"}}]

{"sheet":"Salgsprognose ","index":1,"n_rows":21,"n_cols":14,"rows_kept":21,"merged":[[3,12,3,13]]}
[null,{"$f":"Firmanavn","v":"Firmanavn"}]
[null,"Salgsprognose"]
[null,{"$f":"SporingsDato","v":"2022-04-05"}]
[{"$nulls":11},{"$f":"Firmanavn","v":"Firmanavn"},"KONFIDENSIELT"]
[null,"Navn på kundeemne","Januar \nLukking av","Februar \nLukking av","Mars \nLukking av","April \nLukking av","Mai \nLukking av","Juni \nLukking av","Prognose for juli","August \nLukking av","September \nLukking av","Oktober \nLukking av","November \nLukking av","Desember \nLukking av"]
[null,{"$f":"IFERROR(IF(AND(KundeemneData[[#This Row],[Kundeemnenavn]] <> \"\", ROW(Salgsprognose[Navn på kundeemne])<>SisteOppføring),KundeemneData[Kundeemnenavn], \"\"),\"\")","v":"A. Datum Corporation"},{"$f":"IFERROR(IF(KundeemneData[[#This Row],[Lukking av \nprognose]] <>\"\",IF(KundeemneData[[#This Row],[Lukking av \nprognose]]= \"Januar\",KundeemneData[Vektet \nLukking av],0),\"\"),\"\")","v":{"v":270000,"d":"kr 270,000"}},{"$f":"IFERROR(IF(KundeemneData[[#This Row],[Lukking av \nprognose]] <>\"\",IF(KundeemneData[[#This Row],[Lukking av \nprognose]] = \"Februar\",KundeemneData[Vektet \nLukking av],0),\"\"),\"\")","v":{"v":0,"d":"kr 0"}},{"$f":"IFERROR(IF(KundeemneData[[#This Row],[Lukking av \nprognose]] <>\"\",IF(KundeemneData[[#This Row],[Lukking av \nprognose]] = \"Mars\",KundeemneData[Vektet \nLukking av],0),\"\"),\"\")","v":{"v":0,"d":"kr 0"}},{"$f":"IFERROR(IF(KundeemneData[[#This Row],[Lukking av \nprognose]] <>\"\",IF(KundeemneData[[#This Row],[Lukking av \nprognose]] = \"April\",KundeemneData[Vektet \nLukking av],0),\"\"),\"\")","v":{"v":0,"d":"kr 0"}},{"$f":"IFERROR(IF(KundeemneData[[#This Row],[Lukking av \nprognose]] <>\"\",IF(KundeemneData[[#This Row],[Lukking av \nprognose]] = \"Mai\",KundeemneData[Vektet \nLukking av],0),\"\"),\"\")","v":{"v":0,"d":"kr 0"}},{"$f":"IFERROR(IF(KundeemneData[[#This Row],[Lukking av \nprognose]] <>\"\",IF(KundeemneData[[#This Row],[Lukking av \nprognose]] = \"Juni\",KundeemneData[Vektet \nLukking av],0),\"\"),\"\")","v":{"v":0,"d":"kr 0"}},{"$f":"IFERROR(IF(KundeemneData[[#This Row],[Lukking av \nprognose]] <>\"\",IF(KundeemneData[[#This Row],[Lukking av \nprognose]] = \"July\",KundeemneData[Vektet \nLukking av],0),\"\"),\"\")","v":{"v":0,"d":"kr 0"}},{"$f":"IFERROR(IF(KundeemneData[[#This Row],[Lukking av \nprognose]] <>\"\",IF(KundeemneData[[#This Row],[Lukking av \nprognose]] = \"August\",KundeemneData[Vektet \nLukking av],0),\"\"),\"\")","v":{"v":0,"d":"kr 0"}},{"$f":"IFERROR(IF(KundeemneData[[#This Row],[Lukking av \nprognose]] <>\"\",IF(KundeemneData[[#This Row],[Lukking av \nprognose]] = \"September\",KundeemneData[Vektet \nLukking av],0),\"\"),\"\")","v":{"v":0,"d":"kr 0"}},{"$f":"IFERROR(IF(KundeemneData[[#This Row],[Lukking av \nprognose]] <>\"\",IF(KundeemneData[[#This Row],[Lukking av \nprognose]] = \"Oktober\",KundeemneData[Vektet \nLukking av],0),\"\"),\"\")","v":{"v":0,"d":"kr 0"}},{"$f":"IFERROR(IF(KundeemneData[[#This Row],[Lukking av \nprognose]] <>\"\",IF(KundeemneData[[#This Row],[Lukking av \nprognose]] = \"November\",KundeemneData[Vektet \nLukking av],0),\"\"),\"\")","v":{"v":0,"d":"kr 0"}},{"$f":"IFERROR(IF(KundeemneData[[#This Row],[Lukking av \nprognose]] <>\"\",IF(KundeemneData[[#This Row],[Lukking av \nprognose]] = \"Desember\",KundeemneData[Vektet \nLukking av],0),\"\"),\"\")","v":{"v":0,"d":"kr 0"}}]
[null,{"$f":"IFERROR(IF(AND(KundeemneData[[#This Row],[Kundeemnenavn]] <> \"\", ROW(Salgsprognose[Navn på kundeemne])<>SisteOppføring),KundeemneData[Kundeemnenavn], \"\"),\"\")","v":"Adventure Works"},{"$f":"IFERROR(IF(KundeemneData[[#This Row],[Lukking av \nprognose]] <>\"\",IF(KundeemneData[[#This Row],[Lukking av \nprognose]]= \"Januar\",KundeemneData[Vektet \nLukking av],0),\"\"),\"\")","v":{"v":0,"d":"kr 0"}},{"$f":"IFERROR(IF(KundeemneData[[#This Row],[Lukking av \nprognose]] <>\"\",IF(KundeemneData[[#This Row],[Lukking av \nprognose]] = \"Februar\",KundeemneData[Vektet \nLukking av],0),\"\"),\"\")","v":{"v":20000,"d":"kr 20,000"}},{"$f":"IFERROR(IF(KundeemneData[[#This Row],[Lukking av \nprognose]] <>\"\",IF(KundeemneData[[#This Row],[Lukking av \nprognose]] = \"Mars\",KundeemneData[Vektet \nLukking av],0),\"\"),\"\")","v":{"v":0,"d":"kr 0"}},{"$f":"IFERROR(IF(KundeemneData[[#This Row],[Lukking av \nprognose]] <>\"\",IF(KundeemneData[[#This Row],[Lukking av \nprognose]] = \"April\",KundeemneData[Vektet \nLukking av],0),\"\"),\"\")","v":{"v":0,"d":"kr 0"}},{"$f":"IFERROR(IF(KundeemneData[[#This Row],[Lukking av \nprognose]] <>\"\",IF(KundeemneData[[#This Row],[Lukking av \nprognose]] = \"Mai\",KundeemneData[Vektet \nLukking av],0),\"\"),\"\")","v":{"v":0,"d":"kr 0"}},{"$f":"IFERROR(IF(KundeemneData[[#This Row],[Lukking av \nprognose]] <>\"\",IF(KundeemneData[[#This Row],[Lukking av \nprognose]] = \"Juni\",KundeemneData[Vektet \nLukking av],0),\"\"),\"\")","v":{"v":0,"d":"kr 0"}},{"$f":"IFERROR(IF(KundeemneData[[#This Row],[Lukking av \nprognose]] <>\"\",IF(KundeemneData[[#This Row],[Lukking av \nprognose]] = \"July\",KundeemneData[Vektet \nLukking av],0),\"\"),\"\")","v":{"v":0,"d":"kr 0"}},{"$f":"IFERROR(IF(KundeemneData[[#This Row],[Lukking av \nprognose]] <>\"\",IF(KundeemneData[[#This Row],[Lukking av \nprognose]] = \"August\",KundeemneData[Vektet \nLukking av],0),\"\"),\"\")","v":{"v":0,"d":"kr 0"}},{"$f":"IFERROR(IF(KundeemneData[[#This Row],[Lukking av \nprognose]] <>\"\",IF(KundeemneData[[#This Row],[Lukking av \nprognose]] = \"September\",KundeemneData[Vektet \nLukking av],0),\"\"),\"\")","v":{"v":0,"d":"kr 0"}},{"$f":"IFERROR(IF(KundeemneData[[#This Row],[Lukking av \nprognose]] <>\"\",IF(KundeemneData[[#This Row],[Lukking av \nprognose]] = \"Oktober\",KundeemneData[Vektet \nLukking av],0),\"\"),\"\")","v":{"v":0,"d":"kr 0"}},{"$f":"IFERROR(IF(KundeemneData[[#This Row],[Lukking av \nprognose]] <>\"\",IF(KundeemneData[[#This Row],[Lukking av \nprognose]] = \"November\",KundeemneData[Vektet \nLukking av],0),\"\"),\"\")","v":{"v":0,"d":"kr 0"}},{"$f":"IFERROR(IF(KundeemneData[[#This Row],[Lukking av \nprognose]] <>\"\",IF(KundeemneData[[#This Row],[Lukking av \nprognose]] = \"Desember\",KundeemneData[Vektet \nLukking av],0),\"\"),\"\")","v":{"v":0,"d":"kr 0"}}]
[null,{"$f":"IFERROR(IF(AND(KundeemneData[[#This Row],[Kundeemnenavn]] <> \"\", ROW(Salgsprognose[Navn på kundeemne])<>SisteOppføring),KundeemneData[Kundeemnenavn], \"\"),\"\")","v":"Alpine Ski House"},{"$f":"IFERROR(IF(KundeemneData[[#This Row],[Lukking av \nprognose]] <>\"\",IF(KundeemneData[[#This Row],[Lukking av \nprognose]]= \"Januar\",KundeemneData[Vektet \nLukking av],0),\"\"),\"\")","v":{"v":0,"d":"kr 0"}},{"$f":"IFERROR(IF(KundeemneData[[#This Row],[Lukking av \nprognose]] <>\"\",IF(KundeemneData[[#This Row],[Lukking av \nprognose]] = \"Februar\",KundeemneData[Vektet \nLukking av],0),\"\"),\"\")","v":{"v":0,"d":"kr 0"}},{"$f":"IFERROR(IF(KundeemneData[[#This Row],[Lukking av \nprognose]] <>\"\",IF(KundeemneData[[#This Row],[Lukking av \nprognose]] = \"Mars\",KundeemneData[Vektet \nLukking av],0),\"\"),\"\")","v":{"v":20000,"d":"kr 20,000"}},{"$f":"IFERROR(IF(KundeemneData[[#This Row],[Lukking av \nprognose]] <>\"\",IF(KundeemneData[[#This Row],[Lukking av \nprognose]] = \"April\",KundeemneData[Vektet \nLukking av],0),\"\"),\"\")","v":{"v":0,"d":"kr 0"}},{"$f":"IFERROR(IF(KundeemneData[[#This Row],[Lukking av \nprognose]] <>\"\",IF(KundeemneData[[#This Row],[Lukking av \nprognose]] = \"Mai\",KundeemneData[Vektet \nLukking av],0),\"\"),\"\")","v":{"v":0,"d":"kr 0"}},{"$f":"IFERROR(IF(KundeemneData[[#This Row],[Lukking av \nprognose]] <>\"\",IF(KundeemneData[[#This Row],[Lukking av \nprognose]] = \"Juni\",KundeemneData[Vektet \nLukking av],0),\"\"),\"\")","v":{"v":0,"d":"kr 0"}},{"$f":"IFERROR(IF(KundeemneData[[#This Row],[Lukking av \nprognose]] <>\"\",IF(KundeemneData[[#This Row],[Lukking av \nprognose]] = \"July\",KundeemneData[Vektet \nLukking av],0),\"\"),\"\")","v":{"v":0,"d":"kr 0"}},{"$f":"IFERROR(IF(KundeemneData[[#This Row],[Lukking av \nprognose]] <>\"\",IF(KundeemneData[[#This Row],[Lukking av \nprognose]] = \"August\",KundeemneData[Vektet \nLukking av],0),\"\"),\"\")","v":{"v":0,"d":"kr 0"}},{"$f":"IFERROR(IF(KundeemneData[[#This Row],[Lukking av \nprognose]] <>\"\",IF(KundeemneData[[#This Row],[Lukking av \nprognose]] = \"September\",KundeemneData[Vektet \nLukking av],0),\"\"),\"\")","v":{"v":0,"d":"kr 0"}},{"$f":"IFERROR(IF(KundeemneData[[#This Row],[Lukking av \nprognose]] <>\"\",IF(KundeemneData[[#This Row],[Lukking av \nprognose]] = \"Oktober\",KundeemneData[Vektet \nLukking av],0),\"\"),\"\")","v":{"v":0,"d":"kr 0"}},{"$f":"IFERROR(IF(KundeemneData[[#This Row],[Lukking av \nprognose]] <>\"\",IF(KundeemneData[[#This Row],[Lukking av \nprognose]] = \"November\",KundeemneData[Vektet \nLukking av],0),\"\"),\"\")","v":{"v":0,"d":"kr 0"}},{"$f":"IFERROR(IF(KundeemneData[[#This Row],[Lukking av \nprognose]] <>\"\",IF(KundeemneData[[#This Row],[Lukking av \nprognose]] = \"Desember\",KundeemneData[Vektet \nLukking av],0),\"\"),\"\")","v":{"v":0,"d":"kr 0"}}]
[null,{"$f":"IFERROR(IF(AND(KundeemneData[[#This Row],[Kundeemnenavn]] <> \"\", ROW(Salgsprognose[Navn på kundeemne])<>SisteOppføring),KundeemneData[Kundeemnenavn], \"\"),\"\")","v":""},{"$f":"IFERROR(IF(KundeemneData[[#This Row],[Lukking av \nprognose]] <>\"\",IF(KundeemneData[[#This Row],[Lukking av \nprognose]]= \"Januar\",KundeemneData[Vektet \nLukking av],0),\"\"),\"\")","v":""},{"$f":"IFERROR(IF(KundeemneData[[#This Row],[Lukking av \nprognose]] <>\"\",IF(KundeemneData[[#This Row],[Lukking av \nprognose]] = \"Februar\",KundeemneData[Vektet \nLukking av],0),\"\"),\"\")","v":""},{"$f":"IFERROR(IF(KundeemneData[[#This Row],[Lukking av \nprognose]] <>\"\",IF(KundeemneData[[#This Row],[Lukking av \nprognose]] = \"Mars\",KundeemneData[Vektet \nLukking av],0),\"\"),\"\")","v":""},{"$f":"IFERROR(IF(KundeemneData[[#This Row],[Lukking av \nprognose]] <>\"\",IF(KundeemneData[[#This Row],[Lukking av \nprognose]] = \"April\",KundeemneData[Vektet \nLukking av],0),\"\"),\"\")","v":""},{"$f":"IFERROR(IF(KundeemneData[[#This Row],[Lukking av \nprognose]] <>\"\",IF(KundeemneData[[#This Row],[Lukking av \nprognose]] = \"Mai\",KundeemneData[Vektet \nLukking av],0),\"\"),\"\")","v":""},{"$f":"IFERROR(IF(KundeemneData[[#This Row],[Lukking av \nprognose]] <>\"\",IF(KundeemneData[[#This Row],[Lukking av \nprognose]] = \"Juni\",KundeemneData[Vektet \nLukking av],0),\"\"),\"\")","v":""},{"$f":"IFERROR(IF(KundeemneData[[#This Row],[Lukking av \nprognose]] <>\"\",IF(KundeemneData[[#This Row],[Lukking av \nprognose]] = \"July\",KundeemneData[Vektet \nLukking av],0),\"\"),\"\")","v":""},{"$f":"IFERROR(IF(KundeemneData[[#This Row],[Lukking av \nprognose]] <>\"\",IF(KundeemneData[[#This Row],[Lukking av \nprognose]] = \"August\",KundeemneData[Vektet \nLukking av],0),\"\"),\"\")","v":""},{"$f":"IFERROR(IF(KundeemneData[[#This Row],[Lukking av \nprognose]] <>\"\",IF(KundeemneData[[#This Row],[Lukking av \nprognose]] = \"September\",KundeemneData[Vektet \nLukking av],0),\"\"),\"\")","v":""},{"$f":"IFERROR(IF(KundeemneData[[#This Row],[Lukking av \nprognose]] <>\"\",IF(KundeemneData[[#This Row],[Lukking av \nprognose]] = \"Oktober\",KundeemneData[Vektet \nLukking av],0),\"\"),\"\")","v":""},{"$f":"IFERROR(IF(KundeemneData[[#This Row],[Lukking av \nprognose]] <>\"\",IF(KundeemneData[[#This Row],[Lukking av \nprognose]] = \"November\",KundeemneData[Vektet \nLukking av],0),\"\"),\"\")","v":""},{"$f":"IFERROR(IF(KundeemneData[[#This Row],[Lukking av \nprognose]] <>\"\",IF(KundeemneData[[#This Row],[Lukking av \nprognose]] = \"Desember\",KundeemneData[Vektet \nLukking av],0),\"\"),\"\")","v":""}]
[null,{"$f":"IFERROR(IF(AND(KundeemneData[[#This Row],[Kundeemnenavn]] <> \"\", ROW(Salgsprognose[Navn på kundeemne])<>SisteOppføring),KundeemneData[Kundeemnenavn], \"\"),\"\")","v":""},{"$f":"IFERROR(IF(KundeemneData[[#This Row],[Lukking av \nprognose]] <>\"\",IF(KundeemneData[[#This Row],[Lukking av \nprognose]]= \"Januar\",KundeemneData[Vektet \nLukking av],0),\"\"),\"\")","v":""},{"$f":"IFERROR(IF(KundeemneData[[#This Row],[Lukking av \nprognose]] <>\"\",IF(KundeemneData[[#This Row],[Lukking av \nprognose]] = \"Februar\",KundeemneData[Vektet \nLukking av],0),\"\"),\"\")","v":""},{"$f":"IFERROR(IF(KundeemneData[[#This Row],[Lukking av \nprognose]] <>\"\",IF(KundeemneData[[#This Row],[Lukking av \nprognose]] = \"Mars\",KundeemneData[Vektet \nLukking av],0),\"\"),\"\")","v":""},{"$f":"IFERROR(IF(KundeemneData[[#This Row],[Lukking av \nprognose]] <>\"\",IF(KundeemneData[[#This Row],[Lukking av \nprognose]] = \"April\",KundeemneData[Vektet \nLukking av],0),\"\"),\"\")","v":""},{"$f":"IFERROR(IF(KundeemneData[[#This Row],[Lukking av \nprognose]] <>\"\",IF(KundeemneData[[#This Row],[Lukking av \nprognose]] = \"Mai\",KundeemneData[Vektet \nLukking av],0),\"\"),\"\")","v":""},{"$f":"IFERROR(IF(KundeemneData[[#This Row],[Lukking av \nprognose]] <>\"\",IF(KundeemneData[[#This Row],[Lukking av \nprognose]] = \"Juni\",KundeemneData[Vektet \nLukking av],0),\"\"),\"\")","v":""},{"$f":"IFERROR(IF(KundeemneData[[#This Row],[Lukking av \nprognose]] <>\"\",IF(KundeemneData[[#This Row],[Lukking av \nprognose]] = \"July\",KundeemneData[Vektet \nLukking av],0),\"\"),\"\")","v":""},{"$f":"IFERROR(IF(KundeemneData[[#This Row],[Lukking av \nprognose]] <>\"\",IF(KundeemneData[[#This Row],[Lukking av \nprognose]] = \"August\",KundeemneData[Vektet \nLukking av],0),\"\"),\"\")","v":""},{"$f":"IFERROR(IF(KundeemneData[[#This Row],[Lukking av \nprognose]] <>\"\",IF(KundeemneData[[#This Row],[Lukking av \nprognose]] = \"September\",KundeemneData[Vektet \nLukking av],0),\"\"),\"\")","v":""},{"$f":"IFERROR(IF(KundeemneData[[#This Row],[Lukking av \nprognose]] <>\"\",IF(KundeemneData[[#This Row],[Lukking av \nprognose]] = \"Oktober\",KundeemneData[Vektet \nLukking av],0),\"\"),\"\")","v":""},{"$f":"IFERROR(IF(KundeemneData[[#This Row],[Lukking av \nprognose]] <>\"\",IF(KundeemneData[[#This Row],[Lukking av \nprognose]] = \"November\",KundeemneData[Vektet \nLukking av],0),\"\"),\"\")","v":""},{"$f":"IFERROR(IF(KundeemneData[[#This Row],[Lukking av \nprognose]] <>\"\",IF(KundeemneData[[#This Row],[Lukking av \nprognose]] = \"Desember\",KundeemneData[Vektet \nLukking av],0),\"\"),\"\")","v":""}]
[null,{"$f":"IFERROR(IF(AND(KundeemneData[[#This Row],[Kundeemnenavn]] <> \"\", ROW(Salgsprognose[Navn på kundeemne])<>SisteOppføring),KundeemneData[Kundeemnenavn], \"\"),\"\")","v":""},{"$f":"IFERROR(IF(KundeemneData[[#This Row],[Lukking av \nprognose]] <>\"\",IF(KundeemneData[[#This Row],[Lukking av \nprognose]]= \"Januar\",KundeemneData[Vektet \nLukking av],0),\"\"),\"\")","v":""},{"$f":"IFERROR(IF(KundeemneData[[#This Row],[Lukking av \nprognose]] <>\"\",IF(KundeemneData[[#This Row],[Lukking av \nprognose]] = \"Februar\",KundeemneData[Vektet \nLukking av],0),\"\"),\"\")","v":""},{"$f":"IFERROR(IF(KundeemneData[[#This Row],[Lukking av \nprognose]] <>\"\",IF(KundeemneData[[#This Row],[Lukking av \nprognose]] = \"Mars\",KundeemneData[Vektet \nLukking av],0),\"\"),\"\")","v":""},{"$f":"IFERROR(IF(KundeemneData[[#This Row],[Lukking av \nprognose]] <>\"\",IF(KundeemneData[[#This Row],[Lukking av \nprognose]] = \"April\",KundeemneData[Vektet \nLukking av],0),\"\"),\"\")","v":""},{"$f":"IFERROR(IF(KundeemneData[[#This Row],[Lukking av \nprognose]] <>\"\",IF(KundeemneData[[#This Row],[Lukking av \nprognose]] = \"Mai\",KundeemneData[Vektet \nLukking av],0),\"\"),\"\")","v":""},{"$f":"IFERROR(IF(KundeemneData[[#This Row],[Lukking av \nprognose]] <>\"\",IF(KundeemneData[[#This Row],[Lukking av \nprognose]] = \"Juni\",KundeemneData[Vektet \nLukking av],0),\"\"),\"\")","v":""},{"$f":"IFERROR(IF(KundeemneData[[#This Row],[Lukking av \nprognose]] <>\"\",IF(KundeemneData[[#This Row],[Lukking av \nprognose]] = \"July\",KundeemneData[Vektet \nLukking av],0),\"\"),\"\")","v":""},{"$f":"IFERROR(IF(KundeemneData[[#This Row],[Lukking av \nprognose]] <>\"\",IF(KundeemneData[[#This Row],[Lukking av \nprognose]] = \"August\",KundeemneData[Vektet \nLukking av],0),\"\"),\"\")","v":""},{"$f":"IFERROR(IF(KundeemneData[[#This Row],[Lukking av \nprognose]] <>\"\",IF(KundeemneData[[#This Row],[Lukking av \nprognose]] = \"September\",KundeemneData[Vektet \nLukking av],0),\"\"),\"\")","v":""},{"$f":"IFERROR(IF(KundeemneData[[#This Row],[Lukking av \nprognose]] <>\"\",IF(KundeemneData[[#This Row],[Lukking av \nprognose]] = \"Oktober\",KundeemneData[Vektet \nLukking av],0),\"\"),\"\")","v":""},{"$f":"IFERROR(IF(KundeemneData[[#This Row],[Lukking av \nprognose]] <>\"\",IF(KundeemneData[[#This Row],[Lukking av \nprognose]] = \"November\",KundeemneData[Vektet \nLukking av],0),\"\"),\"\")","v":""},{"$f":"IFERROR(IF(KundeemneData[[#This Row],[Lukking av \nprognose]] <>\"\",IF(KundeemneData[[#This Row],[Lukking av \nprognose]] = \"Desember\",KundeemneData[Vektet \nLukking av],0),\"\"),\"\")","v":""}]
[null,{"$f":"IFERROR(IF(AND(KundeemneData[[#This Row],[Kundeemnenavn]] <> \"\", ROW(Salgsprognose[Navn på kundeemne])<>SisteOppføring),KundeemneData[Kundeemnenavn], \"\"),\"\")","v":""},{"$f":"IFERROR(IF(KundeemneData[[#This Row],[Lukking av \nprognose]] <>\"\",IF(KundeemneData[[#This Row],[Lukking av \nprognose]]= \"Januar\",KundeemneData[Vektet \nLukking av],0),\"\"),\"\")","v":""},{"$f":"IFERROR(IF(KundeemneData[[#This Row],[Lukking av \nprognose]] <>\"\",IF(KundeemneData[[#This Row],[Lukking av \nprognose]] = \"Februar\",KundeemneData[Vektet \nLukking av],0),\"\"),\"\")","v":""},{"$f":"IFERROR(IF(KundeemneData[[#This Row],[Lukking av \nprognose]] <>\"\",IF(KundeemneData[[#This Row],[Lukking av \nprognose]] = \"Mars\",KundeemneData[Vektet \nLukking av],0),\"\"),\"\")","v":""},{"$f":"IFERROR(IF(KundeemneData[[#This Row],[Lukking av \nprognose]] <>\"\",IF(KundeemneData[[#This Row],[Lukking av \nprognose]] = \"April\",KundeemneData[Vektet \nLukking av],0),\"\"),\"\")","v":""},{"$f":"IFERROR(IF(KundeemneData[[#This Row],[Lukking av \nprognose]] <>\"\",IF(KundeemneData[[#This Row],[Lukking av \nprognose]] = \"Mai\",KundeemneData[Vektet \nLukking av],0),\"\"),\"\")","v":""},{"$f":"IFERROR(IF(KundeemneData[[#This Row],[Lukking av \nprognose]] <>\"\",IF(KundeemneData[[#This Row],[Lukking av \nprognose]] = \"Juni\",KundeemneData[Vektet \nLukking av],0),\"\"),\"\")","v":""},{"$f":"IFERROR(IF(KundeemneData[[#This Row],[Lukking av \nprognose]] <>\"\",IF(KundeemneData[[#This Row],[Lukking av \nprognose]] = \"July\",KundeemneData[Vektet \nLukking av],0),\"\"),\"\")","v":""},{"$f":"IFERROR(IF(KundeemneData[[#This Row],[Lukking av \nprognose]] <>\"\",IF(KundeemneData[[#This Row],[Lukking av \nprognose]] = \"August\",KundeemneData[Vektet \nLukking av],0),\"\"),\"\")","v":""},{"$f":"IFERROR(IF(KundeemneData[[#This Row],[Lukking av \nprognose]] <>\"\",IF(KundeemneData[[#This Row],[Lukking av \nprognose]] = \"September\",KundeemneData[Vektet \nLukking av],0),\"\"),\"\")","v":""},{"$f":"IFERROR(IF(KundeemneData[[#This Row],[Lukking av \nprognose]] <>\"\",IF(KundeemneData[[#This Row],[Lukking av \nprognose]] = \"Oktober\",KundeemneData[Vektet \nLukking av],0),\"\"),\"\")","v":""},{"$f":"IFERROR(IF(KundeemneData[[#This Row],[Lukking av \nprognose]] <>\"\",IF(KundeemneData[[#This Row],[Lukking av \nprognose]] = \"November\",KundeemneData[Vektet \nLukking av],0),\"\"),\"\")","v":""},{"$f":"IFERROR(IF(KundeemneData[[#This Row],[Lukking av \nprognose]] <>\"\",IF(KundeemneData[[#This Row],[Lukking av \nprognose]] = \"Desember\",KundeemneData[Vektet \nLukking av],0),\"\"),\"\")","v":""}]
[null,{"$f":"IFERROR(IF(AND(KundeemneData[[#This Row],[Kundeemnenavn]] <> \"\", ROW(Salgsprognose[Navn på kundeemne])<>SisteOppføring),KundeemneData[Kundeemnenavn], \"\"),\"\")","v":""},{"$f":"IFERROR(IF(KundeemneData[[#This Row],[Lukking av \nprognose]] <>\"\",IF(KundeemneData[[#This Row],[Lukking av \nprognose]]= \"Januar\",KundeemneData[Vektet \nLukking av],0),\"\"),\"\")","v":""},{"$f":"IFERROR(IF(KundeemneData[[#This Row],[Lukking av \nprognose]] <>\"\",IF(KundeemneData[[#This Row],[Lukking av \nprognose]] = \"Februar\",KundeemneData[Vektet \nLukking av],0),\"\"),\"\")","v":""},{"$f":"IFERROR(IF(KundeemneData[[#This Row],[Lukking av \nprognose]] <>\"\",IF(KundeemneData[[#This Row],[Lukking av \nprognose]] = \"Mars\",KundeemneData[Vektet \nLukking av],0),\"\"),\"\")","v":""},{"$f":"IFERROR(IF(KundeemneData[[#This Row],[Lukking av \nprognose]] <>\"\",IF(KundeemneData[[#This Row],[Lukking av \nprognose]] = \"April\",KundeemneData[Vektet \nLukking av],0),\"\"),\"\")","v":""},{"$f":"IFERROR(IF(KundeemneData[[#This Row],[Lukking av \nprognose]] <>\"\",IF(KundeemneData[[#This Row],[Lukking av \nprognose]] = \"Mai\",KundeemneData[Vektet \nLukking av],0),\"\"),\"\")","v":""},{"$f":"IFERROR(IF(KundeemneData[[#This Row],[Lukking av \nprognose]] <>\"\",IF(KundeemneData[[#This Row],[Lukking av \nprognose]] = \"Juni\",KundeemneData[Vektet \nLukking av],0),\"\"),\"\")","v":""},{"$f":"IFERROR(IF(KundeemneData[[#This Row],[Lukking av \nprognose]] <>\"\",IF(KundeemneData[[#This Row],[Lukking av \nprognose]] = \"July\",KundeemneData[Vektet \nLukking av],0),\"\"),\"\")","v":""},{"$f":"IFERROR(IF(KundeemneData[[#This Row],[Lukking av \nprognose]] <>\"\",IF(KundeemneData[[#This Row],[Lukking av \nprognose]] = \"August\",KundeemneData[Vektet \nLukking av],0),\"\"),\"\")","v":""},{"$f":"IFERROR(IF(KundeemneData[[#This Row],[Lukking av \nprognose]] <>\"\",IF(KundeemneData[[#This Row],[Lukking av \nprognose]] = \"September\",KundeemneData[Vektet \nLukking av],0),\"\"),\"\")","v":""},{"$f":"IFERROR(IF(KundeemneData[[#This Row],[Lukking av \nprognose]] <>\"\",IF(KundeemneData[[#This Row],[Lukking av \nprognose]] = \"Oktober\",KundeemneData[Vektet \nLukking av],0),\"\"),\"\")","v":""},{"$f":"IFERROR(IF(KundeemneData[[#This Row],[Lukking av \nprognose]] <>\"\",IF(KundeemneData[[#This Row],[Lukking av \nprognose]] = \"November\",KundeemneData[Vektet \nLukking av],0),\"\"),\"\")","v":""},{"$f":"IFERROR(IF(KundeemneData[[#This Row],[Lukking av \nprognose]] <>\"\",IF(KundeemneData[[#This Row],[Lukking av \nprognose]] = \"Desember\",KundeemneData[Vektet \nLukking av],0),\"\"),\"\")","v":""}]
[null,{"$f":"IFERROR(IF(AND(KundeemneData[[#This Row],[Kundeemnenavn]] <> \"\", ROW(Salgsprognose[Navn på kundeemne])<>SisteOppføring),KundeemneData[Kundeemnenavn], \"\"),\"\")","v":""},{"$f":"IFERROR(IF(KundeemneData[[#This Row],[Lukking av \nprognose]] <>\"\",IF(KundeemneData[[#This Row],[Lukking av \nprognose]]= \"Januar\",KundeemneData[Vektet \nLukking av],0),\"\"),\"\")","v":""},{"$f":"IFERROR(IF(KundeemneData[[#This Row],[Lukking av \nprognose]] <>\"\",IF(KundeemneData[[#This Row],[Lukking av \nprognose]] = \"Februar\",KundeemneData[Vektet \nLukking av],0),\"\"),\"\")","v":""},{"$f":"IFERROR(IF(KundeemneData[[#This Row],[Lukking av \nprognose]] <>\"\",IF(KundeemneData[[#This Row],[Lukking av \nprognose]] = \"Mars\",KundeemneData[Vektet \nLukking av],0),\"\"),\"\")","v":""},{"$f":"IFERROR(IF(KundeemneData[[#This Row],[Lukking av \nprognose]] <>\"\",IF(KundeemneData[[#This Row],[Lukking av \nprognose]] = \"April\",KundeemneData[Vektet \nLukking av],0),\"\"),\"\")","v":""},{"$f":"IFERROR(IF(KundeemneData[[#This Row],[Lukking av \nprognose]] <>\"\",IF(KundeemneData[[#This Row],[Lukking av \nprognose]] = \"Mai\",KundeemneData[Vektet \nLukking av],0),\"\"),\"\")","v":""},{"$f":"IFERROR(IF(KundeemneData[[#This Row],[Lukking av \nprognose]] <>\"\",IF(KundeemneData[[#This Row],[Lukking av \nprognose]] = \"Juni\",KundeemneData[Vektet \nLukking av],0),\"\"),\"\")","v":""},{"$f":"IFERROR(IF(KundeemneData[[#This Row],[Lukking av \nprognose]] <>\"\",IF(KundeemneData[[#This Row],[Lukking av \nprognose]] = \"July\",KundeemneData[Vektet \nLukking av],0),\"\"),\"\")","v":""},{"$f":"IFERROR(IF(KundeemneData[[#This Row],[Lukking av \nprognose]] <>\"\",IF(KundeemneData[[#This Row],[Lukking av \nprognose]] = \"August\",KundeemneData[Vektet \nLukking av],0),\"\"),\"\")","v":""},{"$f":"IFERROR(IF(KundeemneData[[#This Row],[Lukking av \nprognose]] <>\"\",IF(KundeemneData[[#This Row],[Lukking av \nprognose]] = \"September\",KundeemneData[Vektet \nLukking av],0),\"\"),\"\")","v":""},{"$f":"IFERROR(IF(KundeemneData[[#This Row],[Lukking av \nprognose]] <>\"\",IF(KundeemneData[[#This Row],[Lukking av \nprognose]] = \"Oktober\",KundeemneData[Vektet \nLukking av],0),\"\"),\"\")","v":""},{"$f":"IFERROR(IF(KundeemneData[[#This Row],[Lukking av \nprognose]] <>\"\",IF(KundeemneData[[#This Row],[Lukking av \nprognose]] = \"November\",KundeemneData[Vektet \nLukking av],0),\"\"),\"\")","v":""},{"$f":"IFERROR(IF(KundeemneData[[#This Row],[Lukking av \nprognose]] <>\"\",IF(KundeemneData[[#This Row],[Lukking av \nprognose]] = \"Desember\",KundeemneData[Vektet \nLukking av],0),\"\"),\"\")","v":""}]
[null,{"$f":"IFERROR(IF(AND(KundeemneData[[#This Row],[Kundeemnenavn]] <> \"\", ROW(Salgsprognose[Navn på kundeemne])<>SisteOppføring),KundeemneData[Kundeemnenavn], \"\"),\"\")","v":""},{"$f":"IFERROR(IF(KundeemneData[[#This Row],[Lukking av \nprognose]] <>\"\",IF(KundeemneData[[#This Row],[Lukking av \nprognose]]= \"Januar\",KundeemneData[Vektet \nLukking av],0),\"\"),\"\")","v":""},{"$f":"IFERROR(IF(KundeemneData[[#This Row],[Lukking av \nprognose]] <>\"\",IF(KundeemneData[[#This Row],[Lukking av \nprognose]] = \"Februar\",KundeemneData[Vektet \nLukking av],0),\"\"),\"\")","v":""},{"$f":"IFERROR(IF(KundeemneData[[#This Row],[Lukking av \nprognose]] <>\"\",IF(KundeemneData[[#This Row],[Lukking av \nprognose]] = \"Mars\",KundeemneData[Vektet \nLukking av],0),\"\"),\"\")","v":""},{"$f":"IFERROR(IF(KundeemneData[[#This Row],[Lukking av \nprognose]] <>\"\",IF(KundeemneData[[#This Row],[Lukking av \nprognose]] = \"April\",KundeemneData[Vektet \nLukking av],0),\"\"),\"\")","v":""},{"$f":"IFERROR(IF(KundeemneData[[#This Row],[Lukking av \nprognose]] <>\"\",IF(KundeemneData[[#This Row],[Lukking av \nprognose]] = \"Mai\",KundeemneData[Vektet \nLukking av],0),\"\"),\"\")","v":""},{"$f":"IFERROR(IF(KundeemneData[[#This Row],[Lukking av \nprognose]] <>\"\",IF(KundeemneData[[#This Row],[Lukking av \nprognose]] = \"Juni\",KundeemneData[Vektet \nLukking av],0),\"\"),\"\")","v":""},{"$f":"IFERROR(IF(KundeemneData[[#This Row],[Lukking av \nprognose]] <>\"\",IF(KundeemneData[[#This Row],[Lukking av \nprognose]] = \"July\",KundeemneData[Vektet \nLukking av],0),\"\"),\"\")","v":""},{"$f":"IFERROR(IF(KundeemneData[[#This Row],[Lukking av \nprognose]] <>\"\",IF(KundeemneData[[#This Row],[Lukking av \nprognose]] = \"August\",KundeemneData[Vektet \nLukking av],0),\"\"),\"\")","v":""},{"$f":"IFERROR(IF(KundeemneData[[#This Row],[Lukking av \nprognose]] <>\"\",IF(KundeemneData[[#This Row],[Lukking av \nprognose]] = \"September\",KundeemneData[Vektet \nLukking av],0),\"\"),\"\")","v":""},{"$f":"IFERROR(IF(KundeemneData[[#This Row],[Lukking av \nprognose]] <>\"\",IF(KundeemneData[[#This Row],[Lukking av \nprognose]] = \"Oktober\",KundeemneData[Vektet \nLukking av],0),\"\"),\"\")","v":""},{"$f":"IFERROR(IF(KundeemneData[[#This Row],[Lukking av \nprognose]] <>\"\",IF(KundeemneData[[#This Row],[Lukking av \nprognose]] = \"November\",KundeemneData[Vektet \nLukking av],0),\"\"),\"\")","v":""},{"$f":"IFERROR(IF(KundeemneData[[#This Row],[Lukking av \nprognose]] <>\"\",IF(KundeemneData[[#This Row],[Lukking av \nprognose]] = \"Desember\",KundeemneData[Vektet \nLukking av],0),\"\"),\"\")","v":""}]
[null,{"$f":"IFERROR(IF(AND(KundeemneData[[#This Row],[Kundeemnenavn]] <> \"\", ROW(Salgsprognose[Navn på kundeemne])<>SisteOppføring),KundeemneData[Kundeemnenavn], \"\"),\"\")","v":""},{"$f":"IFERROR(IF(KundeemneData[[#This Row],[Lukking av \nprognose]] <>\"\",IF(KundeemneData[[#This Row],[Lukking av \nprognose]]= \"Januar\",KundeemneData[Vektet \nLukking av],0),\"\"),\"\")","v":""},{"$f":"IFERROR(IF(KundeemneData[[#This Row],[Lukking av \nprognose]] <>\"\",IF(KundeemneData[[#This Row],[Lukking av \nprognose]] = \"Februar\",KundeemneData[Vektet \nLukking av],0),\"\"),\"\")","v":""},{"$f":"IFERROR(IF(KundeemneData[[#This Row],[Lukking av \nprognose]] <>\"\",IF(KundeemneData[[#This Row],[Lukking av \nprognose]] = \"Mars\",KundeemneData[Vektet \nLukking av],0),\"\"),\"\")","v":""},{"$f":"IFERROR(IF(KundeemneData[[#This Row],[Lukking av \nprognose]] <>\"\",IF(KundeemneData[[#This Row],[Lukking av \nprognose]] = \"April\",KundeemneData[Vektet \nLukking av],0),\"\"),\"\")","v":""},{"$f":"IFERROR(IF(KundeemneData[[#This Row],[Lukking av \nprognose]] <>\"\",IF(KundeemneData[[#This Row],[Lukking av \nprognose]] = \"Mai\",KundeemneData[Vektet \nLukking av],0),\"\"),\"\")","v":""},{"$f":"IFERROR(IF(KundeemneData[[#This Row],[Lukking av \nprognose]] <>\"\",IF(KundeemneData[[#This Row],[Lukking av \nprognose]] = \"Juni\",KundeemneData[Vektet \nLukking av],0),\"\"),\"\")","v":""},{"$f":"IFERROR(IF(KundeemneData[[#This Row],[Lukking av \nprognose]] <>\"\",IF(KundeemneData[[#This Row],[Lukking av \nprognose]] = \"July\",KundeemneData[Vektet \nLukking av],0),\"\"),\"\")","v":""},{"$f":"IFERROR(IF(KundeemneData[[#This Row],[Lukking av \nprognose]] <>\"\",IF(KundeemneData[[#This Row],[Lukking av \nprognose]] = \"August\",KundeemneData[Vektet \nLukking av],0),\"\"),\"\")","v":""},{"$f":"IFERROR(IF(KundeemneData[[#This Row],[Lukking av \nprognose]] <>\"\",IF(KundeemneData[[#This Row],[Lukking av \nprognose]] = \"September\",KundeemneData[Vektet \nLukking av],0),\"\"),\"\")","v":""},{"$f":"IFERROR(IF(KundeemneData[[#This Row],[Lukking av \nprognose]] <>\"\",IF(KundeemneData[[#This Row],[Lukking av \nprognose]] = \"Oktober\",KundeemneData[Vektet \nLukking av],0),\"\"),\"\")","v":""},{"$f":"IFERROR(IF(KundeemneData[[#This Row],[Lukking av \nprognose]] <>\"\",IF(KundeemneData[[#This Row],[Lukking av \nprognose]] = \"November\",KundeemneData[Vektet \nLukking av],0),\"\"),\"\")","v":""},{"$f":"IFERROR(IF(KundeemneData[[#This Row],[Lukking av \nprognose]] <>\"\",IF(KundeemneData[[#This Row],[Lukking av \nprognose]] = \"Desember\",KundeemneData[Vektet \nLukking av],0),\"\"),\"\")","v":""}]
[null,{"$f":"IFERROR(IF(AND(KundeemneData[[#This Row],[Kundeemnenavn]] <> \"\", ROW(Salgsprognose[Navn på kundeemne])<>SisteOppføring),KundeemneData[Kundeemnenavn], \"\"),\"\")","v":""},{"$f":"IFERROR(IF(KundeemneData[[#This Row],[Lukking av \nprognose]] <>\"\",IF(KundeemneData[[#This Row],[Lukking av \nprognose]]= \"Januar\",KundeemneData[Vektet \nLukking av],0),\"\"),\"\")","v":""},{"$f":"IFERROR(IF(KundeemneData[[#This Row],[Lukking av \nprognose]] <>\"\",IF(KundeemneData[[#This Row],[Lukking av \nprognose]] = \"Februar\",KundeemneData[Vektet \nLukking av],0),\"\"),\"\")","v":""},{"$f":"IFERROR(IF(KundeemneData[[#This Row],[Lukking av \nprognose]] <>\"\",IF(KundeemneData[[#This Row],[Lukking av \nprognose]] = \"Mars\",KundeemneData[Vektet \nLukking av],0),\"\"),\"\")","v":""},{"$f":"IFERROR(IF(KundeemneData[[#This Row],[Lukking av \nprognose]] <>\"\",IF(KundeemneData[[#This Row],[Lukking av \nprognose]] = \"April\",KundeemneData[Vektet \nLukking av],0),\"\"),\"\")","v":""},{"$f":"IFERROR(IF(KundeemneData[[#This Row],[Lukking av \nprognose]] <>\"\",IF(KundeemneData[[#This Row],[Lukking av \nprognose]] = \"Mai\",KundeemneData[Vektet \nLukking av],0),\"\"),\"\")","v":""},{"$f":"IFERROR(IF(KundeemneData[[#This Row],[Lukking av \nprognose]] <>\"\",IF(KundeemneData[[#This Row],[Lukking av \nprognose]] = \"Juni\",KundeemneData[Vektet \nLukking av],0),\"\"),\"\")","v":""},{"$f":"IFERROR(IF(KundeemneData[[#This Row],[Lukking av \nprognose]] <>\"\",IF(KundeemneData[[#This Row],[Lukking av \nprognose]] = \"July\",KundeemneData[Vektet \nLukking av],0),\"\"),\"\")","v":""},{"$f":"IFERROR(IF(KundeemneData[[#This Row],[Lukking av \nprognose]] <>\"\",IF(KundeemneData[[#This Row],[Lukking av \nprognose]] = \"August\",KundeemneData[Vektet \nLukking av],0),\"\"),\"\")","v":""},{"$f":"IFERROR(IF(KundeemneData[[#This Row],[Lukking av \nprognose]] <>\"\",IF(KundeemneData[[#This Row],[Lukking av \nprognose]] = \"September\",KundeemneData[Vektet \nLukking av],0),\"\"),\"\")","v":""},{"$f":"IFERROR(IF(KundeemneData[[#This Row],[Lukking av \nprognose]] <>\"\",IF(KundeemneData[[#This Row],[Lukking av \nprognose]] = \"Oktober\",KundeemneData[Vektet \nLukking av],0),\"\"),\"\")","v":""},{"$f":"IFERROR(IF(KundeemneData[[#This Row],[Lukking av \nprognose]] <>\"\",IF(KundeemneData[[#This Row],[Lukking av \nprognose]] = \"November\",KundeemneData[Vektet \nLukking av],0),\"\"),\"\")","v":""},{"$f":"IFERROR(IF(KundeemneData[[#This Row],[Lukking av \nprognose]] <>\"\",IF(KundeemneData[[#This Row],[Lukking av \nprognose]] = \"Desember\",KundeemneData[Vektet \nLukking av],0),\"\"),\"\")","v":""}]
[null,{"$f":"IFERROR(IF(AND(KundeemneData[[#This Row],[Kundeemnenavn]] <> \"\", ROW(Salgsprognose[Navn på kundeemne])<>SisteOppføring),KundeemneData[Kundeemnenavn], \"\"),\"\")","v":""},{"$f":"IFERROR(IF(KundeemneData[[#This Row],[Lukking av \nprognose]] <>\"\",IF(KundeemneData[[#This Row],[Lukking av \nprognose]]= \"Januar\",KundeemneData[Vektet \nLukking av],0),\"\"),\"\")","v":""},{"$f":"IFERROR(IF(KundeemneData[[#This Row],[Lukking av \nprognose]] <>\"\",IF(KundeemneData[[#This Row],[Lukking av \nprognose]] = \"Februar\",KundeemneData[Vektet \nLukking av],0),\"\"),\"\")","v":""},{"$f":"IFERROR(IF(KundeemneData[[#This Row],[Lukking av \nprognose]] <>\"\",IF(KundeemneData[[#This Row],[Lukking av \nprognose]] = \"Mars\",KundeemneData[Vektet \nLukking av],0),\"\"),\"\")","v":""},{"$f":"IFERROR(IF(KundeemneData[[#This Row],[Lukking av \nprognose]] <>\"\",IF(KundeemneData[[#This Row],[Lukking av \nprognose]] = \"April\",KundeemneData[Vektet \nLukking av],0),\"\"),\"\")","v":""},{"$f":"IFERROR(IF(KundeemneData[[#This Row],[Lukking av \nprognose]] <>\"\",IF(KundeemneData[[#This Row],[Lukking av \nprognose]] = \"Mai\",KundeemneData[Vektet \nLukking av],0),\"\"),\"\")","v":""},{"$f":"IFERROR(IF(KundeemneData[[#This Row],[Lukking av \nprognose]] <>\"\",IF(KundeemneData[[#This Row],[Lukking av \nprognose]] = \"Juni\",KundeemneData[Vektet \nLukking av],0),\"\"),\"\")","v":""},{"$f":"IFERROR(IF(KundeemneData[[#This Row],[Lukking av \nprognose]] <>\"\",IF(KundeemneData[[#This Row],[Lukking av \nprognose]] = \"July\",KundeemneData[Vektet \nLukking av],0),\"\"),\"\")","v":""},{"$f":"IFERROR(IF(KundeemneData[[#This Row],[Lukking av \nprognose]] <>\"\",IF(KundeemneData[[#This Row],[Lukking av \nprognose]] = \"August\",KundeemneData[Vektet \nLukking av],0),\"\"),\"\")","v":""},{"$f":"IFERROR(IF(KundeemneData[[#This Row],[Lukking av \nprognose]] <>\"\",IF(KundeemneData[[#This Row],[Lukking av \nprognose]] = \"September\",KundeemneData[Vektet \nLukking av],0),\"\"),\"\")","v":""},{"$f":"IFERROR(IF(KundeemneData[[#This Row],[Lukking av \nprognose]] <>\"\",IF(KundeemneData[[#This Row],[Lukking av \nprognose]] = \"Oktober\",KundeemneData[Vektet \nLukking av],0),\"\"),\"\")","v":""},{"$f":"IFERROR(IF(KundeemneData[[#This Row],[Lukking av \nprognose]] <>\"\",IF(KundeemneData[[#This Row],[Lukking av \nprognose]] = \"November\",KundeemneData[Vektet \nLukking av],0),\"\"),\"\")","v":""},{"$f":"IFERROR(IF(KundeemneData[[#This Row],[Lukking av \nprognose]] <>\"\",IF(KundeemneData[[#This Row],[Lukking av \nprognose]] = \"Desember\",KundeemneData[Vektet \nLukking av],0),\"\"),\"\")","v":""}]
[null,{"$f":"IFERROR(IF(AND(KundeemneData[[#This Row],[Kundeemnenavn]] <> \"\", ROW(Salgsprognose[Navn på kundeemne])<>SisteOppføring),KundeemneData[Kundeemnenavn], \"\"),\"\")","v":""},{"$f":"IFERROR(IF(KundeemneData[[#This Row],[Lukking av \nprognose]] <>\"\",IF(KundeemneData[[#This Row],[Lukking av \nprognose]]= \"Januar\",KundeemneData[Vektet \nLukking av],0),\"\"),\"\")","v":""},{"$f":"IFERROR(IF(KundeemneData[[#This Row],[Lukking av \nprognose]] <>\"\",IF(KundeemneData[[#This Row],[Lukking av \nprognose]] = \"Februar\",KundeemneData[Vektet \nLukking av],0),\"\"),\"\")","v":""},{"$f":"IFERROR(IF(KundeemneData[[#This Row],[Lukking av \nprognose]] <>\"\",IF(KundeemneData[[#This Row],[Lukking av \nprognose]] = \"Mars\",KundeemneData[Vektet \nLukking av],0),\"\"),\"\")","v":""},{"$f":"IFERROR(IF(KundeemneData[[#This Row],[Lukking av \nprognose]] <>\"\",IF(KundeemneData[[#This Row],[Lukking av \nprognose]] = \"April\",KundeemneData[Vektet \nLukking av],0),\"\"),\"\")","v":""},{"$f":"IFERROR(IF(KundeemneData[[#This Row],[Lukking av \nprognose]] <>\"\",IF(KundeemneData[[#This Row],[Lukking av \nprognose]] = \"Mai\",KundeemneData[Vektet \nLukking av],0),\"\"),\"\")","v":""},{"$f":"IFERROR(IF(KundeemneData[[#This Row],[Lukking av \nprognose]] <>\"\",IF(KundeemneData[[#This Row],[Lukking av \nprognose]] = \"Juni\",KundeemneData[Vektet \nLukking av],0),\"\"),\"\")","v":""},{"$f":"IFERROR(IF(KundeemneData[[#This Row],[Lukking av \nprognose]] <>\"\",IF(KundeemneData[[#This Row],[Lukking av \nprognose]] = \"July\",KundeemneData[Vektet \nLukking av],0),\"\"),\"\")","v":""},{"$f":"IFERROR(IF(KundeemneData[[#This Row],[Lukking av \nprognose]] <>\"\",IF(KundeemneData[[#This Row],[Lukking av \nprognose]] = \"August\",KundeemneData[Vektet \nLukking av],0),\"\"),\"\")","v":""},{"$f":"IFERROR(IF(KundeemneData[[#This Row],[Lukking av \nprognose]] <>\"\",IF(KundeemneData[[#This Row],[Lukking av \nprognose]] = \"September\",KundeemneData[Vektet \nLukking av],0),\"\"),\"\")","v":""},{"$f":"IFERROR(IF(KundeemneData[[#This Row],[Lukking av \nprognose]] <>\"\",IF(KundeemneData[[#This Row],[Lukking av \nprognose]] = \"Oktober\",KundeemneData[Vektet \nLukking av],0),\"\"),\"\")","v":""},{"$f":"IFERROR(IF(KundeemneData[[#This Row],[Lukking av \nprognose]] <>\"\",IF(KundeemneData[[#This Row],[Lukking av \nprognose]] = \"November\",KundeemneData[Vektet \nLukking av],0),\"\"),\"\")","v":""},{"$f":"IFERROR(IF(KundeemneData[[#This Row],[Lukking av \nprognose]] <>\"\",IF(KundeemneData[[#This Row],[Lukking av \nprognose]] = \"Desember\",KundeemneData[Vektet \nLukking av],0),\"\"),\"\")","v":""}]
[null,"Totalt",{"$f":"SUBTOTAL(109,Salgsprognose[Januar \nLukking av])","v":{"v":270000,"d":"kr 270,000"}},{"$f":"SUBTOTAL(109,Salgsprognose[Februar \nLukking av])","v":{"v":20000,"d":"kr 20,000"}},{"$f":"SUBTOTAL(109,Salgsprognose[Mars \nLukking av])","v":{"v":20000,"d":"kr 20,000"}},{"$f":"SUBTOTAL(109,Salgsprognose[April \nLukking av])","v":{"v":0,"d":"kr 0"}},{"$f":"SUBTOTAL(109,Salgsprognose[Mai \nLukking av])","v":{"v":0,"d":"kr 0"}},{"$f":"SUBTOTAL(109,Salgsprognose[Juni \nLukking av])","v":{"v":0,"d":"kr 0"}},{"$f":"SUBTOTAL(109,Salgsprognose[Prognose for juli])","v":{"v":0,"d":"kr 0"}},{"$f":"SUBTOTAL(109,Salgsprognose[August \nLukking av])","v":{"v":0,"d":"kr 0"}},{"$f":"SUBTOTAL(109,Salgsprognose[September \nLukking av])","v":{"v":0,"d":"kr 0"}},{"$f":"SUBTOTAL(109,Salgsprognose[Oktober \nLukking av])","v":{"v":0,"d":"kr 0"}},{"$f":"SUBTOTAL(109,Salgsprognose[November \nLukking av])","v":{"v":0,"d":"kr 0"}},{"$f":"SUBTOTAL(109,Salgsprognose[Desember \nLukking av])","v":{"v":0,"d":"kr 0"}}]
[null,"Samlet total",{"$f":"C20","v":{"v":270000,"d":"kr 270,000"}},{"$f":"C21+D20","v":{"v":290000,"d":"kr 290,000"}},{"$f":"D21+E20","v":{"v":310000,"d":"kr 310,000"}},{"$f":"E21+F20","v":{"v":310000,"d":"kr 310,000"}},{"$f":"F21+G20","v":{"v":310000,"d":"kr 310,000"}},{"$f":"G21+H20","v":{"v":310000,"d":"kr 310,000"}},{"$f":"H21+I20","v":{"v":310000,"d":"kr 310,000"}},{"$f":"I21+J20","v":{"v":310000,"d":"kr 310,000"}},{"$f":"J21+K20","v":{"v":310000,"d":"kr 310,000"}},{"$f":"K21+L20","v":{"v":310000,"d":"kr 310,000"}},{"$f":"L21+M20","v":{"v":310000,"d":"kr 310,000"}},{"$f":"M21+N20","v":{"v":310000,"d":"kr 310,000"}}]

{"sheet":"Månedlig vektet prognose","index":2,"n_rows":3,"n_cols":2,"rows_kept":3}
[null,{"$f":"Firmanavn","v":"Firmanavn"}]
[null,"Månedlig vektet prognose"]
[null," "]